[Event "IV Estrellas 2022"]
[Site "La Palma"]
[Date "2022.08.10"]
[Round "7.9"]
[White "Acosta Sosa, Juan Manuel"]
[Black "Perez Bolanos, David"]
[Result "0-1"]
[ECO "A11"]
[WhiteElo "2310"]
[BlackElo "2041"]
[Annotator "TA"]
[PlyCount "78"]
[EventDate "2022.08.06"]
[EventType "swiss"]
[EventCountry "ESP"]
[SourceTitle "playchess.com"]
[Source "ChessBase"]
[SourceQuality "1"]
[TimeControl "5400+30"]

{[%evp 9,78,0,4,14,22,0,0,-24,-21,-17,-13,-24,112,-40,-21,-113,-119,-102,-77,-64,-51,-84,-60,-58,-63,-99,-77,-92,-74,-91,-66,-134,-135,-151,-82,-199,-160,-260,-255,-258,-247,-662,-656,-663,-633,-658,-647,-770,-752,-720,-445,-472,-469,-420,-344,-426,-433,-383,-366,-456,-425,-500,-398,-461,-454,-508,-483,-469,-475,-937,-904]} 1. c4 {[%emt 0:00:59]} c6 {[%emt 0:00:09]} 2. g3 {[%emt 0:00:45]} d5 {[%emt 0:00:10]} 3. Bg2 {[%emt 0:00:15]} Nf6 {[%emt 0:00:13]} 4. Nf3 {[%emt 0:00:09]} dxc4 {[%emt 0:00:10]} 5. Qc2 {[%emt 0:00:39]} Qd5 {[%emt 0:00:30]} 6. Na3 {[%emt 0:04:13] A11: English Opening: 1...c6.} Be6 {[%emt 0:01:01]} 7. O-O {[%emt 0:00:56]} Nbd7 {[%emt 0:03:54]} 8. Rd1 {[%emt 0:05:58][%cal Ob2b3] [#] The position is equal.} g6 $146 {[%emt 0:06:30]} ({Predecessor:} 8... Nb6 9. d3 cxd3 10. exd3 Bg4 11. Qe2 Qh5 12. d4 e6 13. Nc2 Nbd5 14. Rd3 Bd6 {½-½ (107) Verhelst,J (2104)-Sterck,A (2250) Geraardsbergen 2021}) 9. d3 {[%emt 0:03:56]} cxd3 $1 {[%emt 0:00:58]} 10. Rxd3 {[%emt 0:00:06]} Qh5 {[%emt 0:09:23] [#]} (10... Qc5 $1 $11 {remains equal.}) 11. Rd4 $2 {[%emt 0:16:46]} (11. Ng5 $1 $16) 11... Bg7 $36 {[%emt 0:11:16][%mdl 2048] Black has some pressure.} 12. h3 {[%emt 0:28:40]} (12. Rb4 $1 $11) 12... Qc5 $17 {[%emt 0:05:13]} ({Don't play} 12... Bxh3 13. Rh4 Bxg2 14. Rxh5 Bxf3 15. Rh4 $16) 13. Qd1 {[%emt 0:01:42]} O-O {[%emt 0:10:42]} 14. Ng5 {[%emt 0:03:33]} Nd5 {[%emt 0:02:36]} 15. Re4 {[%emt 0:06:52]} N7b6 {[%emt 0:08:48]} 16. Nxe6 {[%emt 0:03:04]} fxe6 {[%emt 0:00:40][%cal Bf7e6,Be6e5,Be5e4][%mdl 32]} 17. Qe1 {[%emt 0:00:01]} Rf7 {[%emt 0:04:07] Black is much more active.} 18. Rb1 {[%emt 0:01:58]} Raf8 {[%emt 0:00:40][%cal Rf7f2]} 19. Bf3 {[%emt 0:00:02]} e5 {[%emt 0:08:17]} 20. Bd2 {[%emt 0:05:04] [#]} (20. b4 $15 Qd6 21. Bb2) 20... Nf6 $1 {[%emt 0:01:58]} 21. Be3 {[%emt 0:00:09]} Qd6 {[%emt 0:03:39]} ({Don't take} 21... Nxe4 22. Bxc5 Nxc5 23. Bg4 $16) (21... Qd5 $142 22. Rb4 Qe6) 22. Rh4 {[%emt 0:02:40]} (22. Nc4 $17 Nxc4 23. Rxc4) 22... Qe6 {[%emt 0:06:32]} 23. b3 {[%emt 0:03:14]} (23. Bg2 $17 {keeps fighting.}) 23... e4 $19 {[%emt 0:00:50]} 24. Bg2 {[%emt 0:00:01]} Nbd5 {[%emt 0:00:14]} 25. Nc2 {[%emt 0:01:13]} (25. Qd2) 25... Nxe3 {[%emt 0:01:28]} 26. Nxe3 {[%emt 0:02:11]} g5 {[%emt 0:00:18]} 27. Rg4 {[%emt 0:01:14]} Nxg4 {[%emt 0:00:07]} 28. Nxg4 {[%emt 0:01:36]} h5 {[%emt 0:00:35]} 29. Nh2 {[%emt 0:00:17]} Qf5 {[%emt 0:02:06]} 30. f3 {[%emt 0:00:12]} exf3 {[%emt 0:00:13]} 31. exf3 {[%emt 0:00:12]} Qe5 {[%emt 0:00:39]} 32. Nf1 {[%emt 0:00:24]} Qxe1 {[%emt 0:00:10]} 33. Rxe1 {[%emt 0:00:01]} Bd4+ {[%emt 0:00:25]} 34. Kh2 {[%emt 0:00:01]} e5 {[%emt 0:01:35]} 35. Rd1 {[%emt 0:00:47]} Rd7 {[%emt 0:01:03][%cal Od4g1] Hoping for ...Bg1+!} 36. Ne3 {[%emt 0:00:05]} Rfd8 {[%emt 0:00:11] Black is clearly winning.} 37. Nf5 {[%emt 0:00:05]} h4 {[%emt 0:01:44]} 38. gxh4 {[%emt 0:00:36]} gxh4 {[%emt 0:00:14]} 39. Bf1 {[%emt 0:00:01] [#]} (39. Rf1 $142) 39... Bg1+ $1 {[%emt 0:10:42][%mdl 512] Weighted Error Value: White=0.62/Black=0.29 (precise)} 0-1

[Event "IV Estrellas 2022"]
[Site "La Palma"]
[Date "2022.08.10"]
[Round "7.10"]
[White "Carraminana Lopez, Luis Antonio"]
[Black "Brito Garcia, Alfredo"]
[Result "1/2-1/2"]
[ECO "C54"]
[WhiteElo "1910"]
[BlackElo "2291"]
[Annotator "TA"]
[PlyCount "61"]
[EventDate "2022.08.06"]
[EventType "swiss"]
[EventCountry "ESP"]
[SourceTitle "playchess.com"]
[Source "ChessBase"]
[SourceQuality "1"]
[TimeControl "5400+30"]

{[%evp 9,61,10,16,17,8,0,6,0,0,0,16,12,25,15,32,28,20,25,32,26,12,17,31,14,33,48,45,45,111,118,110,-13,59,11,11,11,8,5,9,15,64,0,0,0,0,0,0,0,0,0,0,0,0,0]} 1. e4 {[%emt 0:00:55]} e5 {[%emt 0:00:54]} 2. Nf3 {[%emt 0:00:24]} Nc6 {[%emt 0:00:06]} 3. Bc4 {[%emt 0:00:09]} Nf6 {[%emt 0:00:58]} 4. d3 {[%emt 0:00:41]} Bc5 {[%emt 0:00:07]} 5. c3 {[%emt 0:01:09]} a5 {[%emt 0:01:25]} 6. a4 {[%emt 0:01:18] C54: Giuoco Piano: 4 c3 Nf6, main lines with 5 d4 and 5 d3.} d6 {[%emt 0:00:36]} ({Resist} 6... d5 7. exd5 Nxd5 8. Qb3 $16) 7. Nbd2 {[%emt 0:01:35]} O-O {[%emt 0:07:30]} 8. O-O {[%emt 0:02:27]} h6 {[%emt 0:04:42]} 9. h3 {[%emt 0:03:33]} Ba7 {[%emt 0:04:00]} 10. Re1 {[%emt 0:03:44]} Ne7 {[%emt 0:02:25]} 11. Nf1 {[%emt 0:00:40]} c6 {[%emt 0:00:31]} 12. Ng3 {[%emt 0:16:15]} Ng6 {[%emt 0:02:50]} 13. Bb3 {[%emt 0:03:17]} d5 {[%emt 0:13:41]} 14. exd5 {[%emt 0:12:00]} Nxd5 {[%emt 0:02:47]} 15. d4 {[%emt 0:07:33]} exd4 {[%emt 0:00:54]} 16. Nxd4 {[%emt 0:02:05]} Ndf4 {[%emt 0:04:35] [#]} 17. Bxf4 $146 {[%emt 0:07:21]} ({Predecessor:} 17. Qf3 Qf6 18. Ne4 Qh4 19. Nd6 Bxd4 20. cxd4 Be6 21. Bxf4 Nxf4 22. Bxe6 fxe6 23. Qg4 {0-1 (43) Della Morte,P (2287)-Nestorovic,N (2481) Las Vegas 2019}) 17... Nxf4 {[%emt 0:00:45]} 18. Qf3 {[%emt 0:01:13]} Bxd4 {[%emt 0:05:40]} (18... Qf6 $14) 19. Qxf4 $16 {[%emt 0:04:02]} Bb6 {[%emt 0:03:55][%cal Oc8e6]} 20. Nf5 {[%emt 0:10:54] [#] White is much more active. The black rooks are badly placed.} ({Better is} 20. Rad1 $16 Qc7 21. Qxc7 Bxc7 22. Re7) 20... Bc7 {[%emt 0:13:10]} (20... Bxf2+ $1 $11 21. Qxf2 Bxf5) 21. Qg4 {[%emt 0:09:50]} (21. Qf3 $14 Bxf5 22. Qxf5) 21... Qf6 $11 {[%emt 0:05:27]} 22. Ne7+ {[%emt 0:00:27]} Kh8 $132 {[%emt 0:02:16][%mdl 2048] Black is not keeping still} 23. Nxc8 {[%emt 0:00:14]} Raxc8 {[%emt 0:00:08]} 24. Rad1 {[%emt 0:03:37]} Rcd8 {[%emt 0:04:22]} (24... Rce8 $11) 25. Rxd8 {[%emt 0:03:49]} ({White should try} 25. Rd7 $14 Rxd7 26. Qxd7) 25... Rxd8 {[%emt 0:02:00] The position is equal.} 26. Re2 {[%emt 0:02:02]} Bb6 {[%emt 0:07:34]} 27. g3 {[%emt 0:00:24]} g6 {[%emt 0:00:34]} 28. Kg2 {[%emt 0:00:16]} Kg7 {[%emt 0:01:45]} 29. Qf3 {[%emt 0:00:37]} Qxf3+ {[%emt 0:00:14]} 30. Kxf3 {[%emt 0:00:06]} Rd7 {[%emt 0:00:08] Prevents Re7.} 31. h4 {[%emt 0:03:23] Weighted Error Value: White=0.14 (very precise) /Black=0.11 (very precise)} 1/2-1/2

[Event "IV Estrellas 2022"]
[Site "La Palma"]
[Date "2022.08.10"]
[Round "7.11"]
[White "Cubas Cabrera, Angel Luis"]
[Black "Hernandez Leon, Sergio"]
[Result "1/2-1/2"]
[ECO "E04"]
[WhiteElo "2207"]
[BlackElo "2094"]
[Annotator "TA"]
[PlyCount "33"]
[EventDate "2022.08.06"]
[EventType "swiss"]
[EventCountry "ESP"]
[SourceTitle "playchess.com"]
[Source "ChessBase"]
[SourceQuality "1"]
[TimeControl "5400+30"]

{[%evp 12,33,36,0,20,0,4,-25,0,-8,18,15,23,20,23,19,14,21,14,0,0,0,0,-30]} 1. d4 {[%emt 0:00:03]} Nf6 {[%emt 0:00:06]} 2. c4 {[%emt 0:00:04]} e6 {[%emt 0:00:08]} 3. g3 {[%emt 0:00:06]} d5 {[%emt 0:00:18]} 4. Nf3 {[%emt 0:00:20]} dxc4 {[%emt 0:00:09]} 5. Bg2 {[%emt 0:00:16]} Bb4+ {[%emt 0:00:27]} 6. Bd2 {[%emt 0:00:26]} a5 {[%emt 0:01:12]} 7. O-O {[%emt 0:09:50][%mdl 1024] White has compensation.} O-O {[%emt 0:00:20] E04: Open Catalan: 5 Nf3.} 8. a4 {[%emt 0:05:49]} Nc6 {[%emt 0:05:37] [#]} 9. e3 $146 {[%emt 0:01:04]} ({Predecessor:} 9. Na3 Bxd2 10. Qxd2 e5 11. dxe5 Nxe5 12. Qxd8 Nxf3+ 13. Bxf3 Rxd8 14. Nxc4 Be6 15. Rfc1 {½-½ (51) Gallego Eraso,P (2365)-De la Villa Garcia,J (2476) Villava 2009}) 9... Qe7 {[%emt 0:03:41] Black has an edge.} (9... e5 $5) 10. Na3 {[%emt 0:14:11][%cal Bb1a3,Ba3c4,Bc4e5][%mdl 32]} Rd8 {[%emt 0:10:20]} 11. Nxc4 {[%emt 0:15:41]} Bxd2 {[%emt 0:11:24]} 12. Nfxd2 {[%emt 0:00:18]} Nd5 {[%emt 0:07:18]} 13. Nf3 {[%emt 0:05:27]} b6 {[%emt 0:04:22] The position is equal.} 14. Qb3 {[%emt 0:06:58]} Ba6 {[%emt 0:05:11]} 15. Rfc1 {[%emt 0:05:44][%cal Oc4b6]} Rac8 {[%emt 0:02:59]} 16. Nce5 {[%emt 0:32:13]} Ncb4 {[%emt 0:44:58]} 17. Qd1 {[%emt 0:00:30] Not much happened in this game.  Weighted Error Value: White=0.12 (very precise) /Black=0.04 (flawless)} 1/2-1/2

[Event "IV Estrellas 2022"]
[Site "La Palma"]
[Date "2022.08.10"]
[Round "7.12"]
[White "Ramirez Maillo, Cristian"]
[Black "Antic, Dejan"]
[Result "0-1"]
[ECO "C02"]
[WhiteElo "1896"]
[BlackElo "2452"]
[Annotator "TA"]
[PlyCount "68"]
[EventDate "2022.08.06"]
[EventType "swiss"]
[EventCountry "ESP"]
[SourceTitle "playchess.com"]
[Source "ChessBase"]
[SourceQuality "1"]
[TimeControl "5400+30"]

{[%evp 20,68,0,0,0,-10,0,-27,17,0,0,0,0,0,0,-43,-24,-93,-99,-106,-88,-99,-67,-138,-144,-147,-153,-227,-216,-366,-360,-375,-370,-615,-658,-1016,-950,-1100,-1096,-1083,-1089,-1034,-1025,-2012,-2027,-2833,-1336,-5618,-1107,-29997,-29998]} 1. e4 {[%emt 0:00:01]} e6 {[%emt 0:03:12]} 2. d4 {[%emt 0:00:17]} d5 {[%emt 0:00:16]} 3. e5 {[%emt 0:00:11]} c5 {[%emt 0:00:11]} 4. c3 {[%emt 0:00:21]} Nc6 {[%emt 0:00:13]} 5. Nf3 {[%emt 0:00:09]} Qb6 {[%emt 0:00:35]} 6. a3 {[%emt 0:00:26]} Nh6 {[%emt 0:00:55][%cal Bg8h6,Bh6f5,Bf5e7,Be7g6][%mdl 32]} 7. b4 {[%emt 0:00:29]} cxd4 {[%emt 0:00:28]} 8. cxd4 {[%emt 0:00:15]} Nf5 {[%emt 0:00:13]} 9. Bb2 {[%emt 0:00:59]} Bd7 {[%emt 0:01:01]} 10. g4 {[%emt 0:01:28]} Nfe7 {[%emt 0:00:11]} 11. Nc3 {[%emt 0:00:52]} Ng6 {[%emt 0:00:27] C02: French: Advance Variation.} 12. h4 {[%emt 0:01:30]} h5 $1 {[%emt 0:02:14]} 13. g5 {[%emt 0:00:40]} Qd8 {[%emt 0:04:13] Black has an edge.} (13... Na5 $5) 14. Rc1 {[%emt 0:03:58]} a6 {[%emt 0:04:00]} 15. Bd3 {[%emt 0:03:15]} Nce7 {[%emt 0:01:14]} 16. Qd2 {[%emt 0:08:58]} Nf5 {[%emt 0:06:29] [#]} 17. Rh3 $146 {[%emt 0:09:51]} ({Predecessor:} 17. Rc2 Rc8 18. Ne2 Bb5 19. Bxb5+ axb5 20. Rxc8 Qxc8 21. Ng3 Be7 22. Kf1 Qc4+ 23. Kg2 {0-1 (42) Sadler,M (2660)-Tikkanen,H (2549) Wijk aan Zee 2012}) 17... Rc8 {[%emt 0:02:41]} 18. b5 {[%emt 0:09:08]} (18. Rh2 $11 {keeps the balance.}) 18... axb5 {[%emt 0:13:49] Black continues to play with concentration.} 19. Nxb5 {[%emt 0:03:54]} Be7 {[%emt 0:01:01]} 20. Rxc8 {[%emt 0:14:15]} Bxc8 {[%emt 0:02:28]} 21. Bc3 {[%emt 0:04:18] [#]} (21. Nd6+ $15 Nxd6 22. exd6 Bxd6 23. Bxg6 fxg6 24. Ne5 Bxe5 25. dxe5) 21... O-O $1 $17 {[%emt 0:03:07]} 22. Bb4 {[%emt 0:00:57]} Bxb4 {[%emt 0:01:50]} 23. axb4 {[%emt 0:01:17]} (23. Qxb4 $17 {is a better defense.} Nf4 24. Bxf5) 23... Qb6 $19 {[%emt 0:02:15]} 24. Bxf5 {[%emt 0:03:56]} (24. Na3 $142) 24... exf5 {[%emt 0:00:52]} ({Worse is} 24... Qxb5 25. Bxg6 fxg6 26. Ng1 $17) 25. Nd6 {[%emt 0:00:31]} f4 {[%emt 0:00:49]} 26. Rh1 {[%emt 0:01:06]} (26. Nxc8 Rxc8 27. Kf1) 26... Bg4 {[%emt 0:00:18]} 27. Ng1 {[%emt 0:08:21]} Ra8 {[%emt 0:01:38] ( -> ...Ra1+)} 28. f3 {[%emt 0:01:08] [#]} Bxf3 $1 {[%emt 0:01:21][%mdl 512]} 29. Nxf3 {[%emt 0:03:00]} Ra1+ {[%emt 0:00:07][%mdl 64] Skewer} 30. Kf2 {[%emt 0:00:18]} Rxh1 {[%emt 0:00:08]} 31. Kg2 {[%emt 0:00:06]} Ra1 {[%emt 0:00:32] White must now prevent ...Qa6.} 32. Qc3 {[%emt 0:01:26]} Ra2+ {[%emt 0:00:13]} (32... Qa6 $142 33. Nc4 dxc4) 33. Kh3 {[%emt 0:00:30]} Qd8 {[%emt 0:01:11]} (33... Qa6 $142 34. b5 Qa4) 34. Qb3 {[%emt 0:01:56]} Qd7+ {[%emt 0:00:20] Weighted Error Value: White=1.43/Black=0.42} 0-1

[Event "IV Estrellas 2022"]
[Site "La Palma"]
[Date "2022.08.10"]
[Round "7.13"]
[White "Amador Garcia, Ismael"]
[Black "Gil Jimenez, Ruben"]
[Result "1-0"]
[ECO "B01"]
[WhiteElo "2128"]
[BlackElo "1675"]
[Annotator "TA"]
[PlyCount "71"]
[EventDate "2022.08.06"]
[EventType "swiss"]
[EventCountry "ESP"]
[SourceTitle "playchess.com"]
[Source "ChessBase"]
[SourceQuality "1"]
[TimeControl "5400+30"]

{[%evp 10,71,51,50,54,46,47,33,62,56,192,200,211,172,383,378,368,369,386,331,328,314,347,348,340,356,355,358,318,197,235,243,297,295,381,305,492,172,342,329,329,339,335,315,337,354,443,437,437,432,485,490,489,479,570,567,528,528,499,515,971,914,875,847]} 1. e4 {[%emt 0:01:18]} d5 {[%emt 0:00:05]} 2. exd5 {[%emt 0:00:03]} Qxd5 {[%emt 0:00:07]} 3. Nc3 {[%emt 0:00:03]} Qd6 {[%emt 0:00:11]} 4. Nf3 {[%emt 0:00:06]} Nf6 {[%emt 0:00:04]} 5. d4 {[%emt 0:00:16]} c6 {[%emt 0:00:03]} 6. Ne5 {[%emt 0:00:13]} Nbd7 {[%emt 0:00:12] B01: Scandinavian Defence.} 7. f4 {[%emt 0:00:06]} Nb6 {[%emt 0:02:28]} 8. g4 {[%emt 0:00:22][%cal Bg2g4,Bg4g5][%mdl 32]} h5 {[%emt 0:05:50][%cal Rh5g4] White is slightly better.} 9. g5 {[%emt 0:02:25] White is more active.} Nfd5 {[%emt 1:26:00]} (9... Nfd7 $1 $14) 10. Ne4 $18 {[%emt 0:03:52] [#]} Qd8 $146 {[%emt 0:00:00]} ({Predecessor:} 10... Qc7 11. c4 Nb4 12. a3 Bf5 13. Bg2 Na6 14. Ng3 g6 15. Nxf5 gxf5 16. Bf3 Bg7 {½-½ (37) Muetsch,A (2226)-Voicu Jagodzinsky,C (2247) Plochingen 2020}) 11. c4 $36 {[%emt 0:07:07][%mdl 2048] White is really pushing.} Nc7 {[%emt 0:00:00]} (11... Nb4) 12. g6 {[%emt 0:02:12]} fxg6 {[%emt 0:00:00]} 13. Ng5 {[%emt 0:00:31]} Bg4 {[%emt 0:00:00] [#]} 14. Bd3 $1 {[%emt 0:07:49][%cal Rd3g6]} Rh6 {[%emt 0:00:00]} 15. Qc2 {[%emt 0:20:09]} (15. Nxg4 hxg4 16. Be3 e6 17. Qxg4 Qf6 $16) 15... Qxd4 {[%emt 0:00:00]} 16. Bxg6+ {[%emt 0:00:45]} Rxg6 {[%emt 0:00:00]} 17. Qxg6+ {[%emt 0:01:04]} Kd8 {[%emt 0:00:00]} 18. Nxg4 {[%emt 0:09:42]} (18. Ngf7+ Kc8 19. Nxg4 hxg4 $14) 18... hxg4 {[%emt 0:00:00]} 19. Qf5 {[%emt 0:00:24]} Qf6 {[%emt 0:00:00]} 20. Qe4 {[%emt 0:03:52]} ({Don't play} 20. Qxg4 Nxc4 21. O-O Qd4+ 22. Kg2 Qd5+ 23. Kh3 Qd3+ 24. Rf3 Qd5) 20... e6 {[%emt 0:00:00] Against f5} 21. O-O {[%emt 0:01:41] And now f5 would win.} Bc5+ {[%emt 0:00:00]} 22. Kg2 {[%emt 0:00:04] aiming for f5.} Ke7 $2 {[%emt 0:00:00]} (22... g6 23. Qd3+ Ke7) 23. Qe5 $2 {[%emt 0:02:09]} (23. f5) 23... Qxe5 {[%emt 0:00:00]} (23... Bd6 {is a better defense.} 24. Qe4 Rh8) 24. fxe5 {[%emt 0:00:07] Strongly threatening Rf7+. Really sharp!} Rf8 {[%emt 0:00:00] Against Rf7+} 25. Rxf8 {[%emt 0:00:24]} ({Resist} 25. Ne4 Na6 26. Rxf8 Kxf8 $18) 25... Kxf8 {[%emt 0:00:00]} 26. b3 {[%emt 0:00:05]} Bd4 {[%emt 0:00:00]} 27. Ba3+ {[%emt 0:00:04]} c5 {[%emt 0:00:00]} 28. Rf1+ {[%emt 0:00:38] White is clearly winning.} Ke8 {[%emt 0:00:00]} 29. Ne4 {[%emt 0:01:41]} Bxe5 {[%emt 0:00:00]} 30. Nxc5 {[%emt 0:02:53]} ({Less strong is} 30. Bxc5 Nc8 31. Nf2 b6 $18) 30... Bd6 {[%emt 0:00:00] [#]} 31. Nxe6 $1 {[%emt 0:00:41][%mdl 512]} Nxe6 {[%emt 0:00:00]} (31... Bxa3 32. Nxc7+) 32. Bxd6 {[%emt 0:00:02]} Nd7 {[%emt 0:00:00]} 33. Kg3 {[%emt 0:01:09]} Nf6 {[%emt 0:00:00]} 34. Be5 {[%emt 0:00:02]} Nc5 {[%emt 0:00:00]} (34... Ng8 $142 35. Kxg4 g6) 35. Bxf6 {[%emt 0:00:09]} gxf6 {[%emt 0:00:00]} 36. Kxg4 {[%emt 0:00:03] White took control after the opening.  Weighted Error Value: White=0.20 (precise) /Black=0.49} 1-0

[Event "IV Estrellas 2022"]
[Site "La Palma"]
[Date "2022.08.10"]
[Round "7.14"]
[White "Martin Rodriguez, Jose Carlos"]
[Black "Cruz Gomez, Isidro"]
[Result "0-1"]
[ECO "E13"]
[WhiteElo "1804"]
[BlackElo "2089"]
[Annotator "NA RC"]
[PlyCount "52"]
[EventDate "2022.08.06"]
[EventType "swiss"]
[EventCountry "ESP"]
[SourceTitle "playchess.com"]
[Source "ChessBase"]
[SourceQuality "1"]
[TimeControl "5400+30"]

1. c4 {[%emt 0:01:59]} Nf6 {[%emt 0:00:22]} 2. Nc3 {[%emt 0:00:24]} e6 {[%emt 0:00:10]} 3. d4 {[%emt 0:00:03]} Bb4 {[%emt 0:00:21]} 4. Qc2 {[%emt 0:00:06]} b6 {[%emt 0:00:20]} 5. a3 {[%emt 0:00:05]} Bxc3+ {[%emt 0:01:41]} 6. Qxc3 {[%emt 0:03:35]} Bb7 {[%emt 0:01:20]} 7. Nf3 {[%emt 0:00:12]} c5 {[%emt 0:00:26]} 8. Bg5 {[%emt 0:00:39]} h6 {[%emt 0:03:20]} 9. Bh4 {[%emt 0:00:10]} d6 {[%emt 0:01:40]} 10. e3 {[%emt 0:00:28]} Nbd7 {[%emt 0:00:19]} 11. Be2 {[%emt 0:00:14]} Qc7 {[%emt 0:00:30]} 12. O-O {[%emt 0:00:52]} Ne4 {[%emt 0:00:44]} 13. Qc2 {[%emt 0:00:16]} g5 {[%emt 0:00:48]} 14. Bg3 {[%emt 0:00:06]} h5 {[%emt 0:00:16]} 15. h4 {[%emt 0:01:06]} Nxg3 {[%emt 0:01:29]} 16. fxg3 {[%emt 0:00:13]} gxh4 {[%emt 0:05:13]} 17. gxh4 {[%emt 0:03:30]} Rg8 {[%emt 0:07:50]} 18. Ng5 {[%emt 0:00:22]} f6 {[%emt 0:00:53]} 19. Nxe6 {[%emt 0:00:14]} Rxg2+ {[%emt 0:00:06]} 20. Kh1 {[%emt 0:00:12]} Rxe2+ {[%emt 0:00:09]} 21. d5 {[%emt 0:00:27]} Rxc2 {[%emt 0:00:49]} 22. Nxc7+ {[%emt 0:00:01]} Ke7 {[%emt 0:00:10]} 23. Nxa8 {[%emt 0:00:04]} Bxa8 {[%emt 0:00:05]} 24. Rac1 {[%emt 0:00:51]} Rxb2 {[%emt 0:00:20]} 25. Rf5 {[%emt 0:00:01]} Ne5 {[%emt 0:01:30]} 26. Rxh5 {[%emt 0:00:03]} Nd7 {[%emt 1:12:39]} 0-1

[Event "IV Estrellas 2022"]
[Site "La Palma"]
[Date "2022.08.10"]
[Round "7.15"]
[White "Perez Bolanos, Joel"]
[Black "Baeza Escudero, Javier"]
[Result "0-1"]
[ECO "A49"]
[WhiteElo "2036"]
[BlackElo "1861"]
[Annotator "NA RC"]
[PlyCount "80"]
[EventDate "2022.08.06"]
[EventType "swiss"]
[EventCountry "ESP"]
[SourceTitle "playchess.com"]
[Source "ChessBase"]
[SourceQuality "1"]
[TimeControl "5400+30"]

1. Nf3 {[%emt 0:00:18]} Nf6 {[%emt 0:03:53]} 2. g3 {[%emt 0:00:13]} g6 {[%emt 0:00:17]} 3. b3 {[%emt 0:00:10]} Bg7 {[%emt 0:00:13]} 4. Bb2 {[%emt 0:00:11]} O-O {[%emt 0:00:22]} 5. Bg2 {[%emt 0:00:05]} d6 {[%emt 0:00:31]} 6. d4 {[%emt 0:00:09]} Na6 {[%emt 0:03:20]} 7. O-O {[%emt 0:02:18]} c5 {[%emt 0:00:16]} 8. e3 {[%emt 0:00:36]} cxd4 {[%emt 0:04:46]} 9. exd4 {[%emt 0:01:33]} d5 {[%emt 0:01:27]} 10. Nbd2 {[%emt 0:02:32]} Bf5 {[%emt 0:02:46]} 11. a3 {[%emt 0:04:14]} Rc8 {[%emt 0:03:40]} 12. Rc1 {[%emt 0:01:50]} Ne4 {[%emt 0:11:43]} 13. Nxe4 {[%emt 0:07:40]} Bxe4 {[%emt 0:00:09]} 14. Ne5 {[%emt 0:03:47]} Bxg2 {[%emt 0:02:15]} 15. Kxg2 {[%emt 0:00:39]} Nb8 {[%emt 0:06:43]} 16. Qe2 {[%emt 0:07:23]} a6 {[%emt 0:07:00]} 17. c4 {[%emt 0:06:03]} Nc6 18. Nxc6 {[%emt 0:59:49]} Rxc6 {[%emt 0:50:09]} 19. c5 {[%emt 0:00:00]} Qc7 {[%emt 0:00:00]} 20. b4 {[%emt 0:00:00]} Re8 {[%emt 0:00:00]} 21. Rfe1 {[%emt 0:00:00]} Re6 {[%emt 0:00:00]} 22. Qf3 {[%emt 0:00:00]} Rxe1 {[%emt 0:00:00]} 23. Rxe1 {[%emt 0:00:00]} Qd7 {[%emt 0:00:00]} 24. Qb3 {[%emt 0:00:00]} f6 {[%emt 0:00:00]} 25. f4 {[%emt 0:00:00]} g5 {[%emt 0:00:00]} 26. fxg5 {[%emt 0:00:00]} fxg5 {[%emt 0:00:00]} 27. Qe3 {[%emt 0:00:00]} Qa4 {[%emt 0:00:00]} 28. Rf1 {[%emt 0:00:00]} Qc2+ {[%emt 0:00:00]} 29. Rf2 {[%emt 0:00:00]} Qg6 {[%emt 0:00:00]} 30. Re2 {[%emt 0:00:00]} e6 {[%emt 0:00:00]} 31. a4 {[%emt 0:00:00]} h5 {[%emt 0:03:46]} 32. b5 {[%emt 0:00:00]} axb5 {[%emt 0:00:15]} 33. axb5 {[%emt 0:00:00]} Qf5 {[%emt 0:00:16]} 34. c6 {[%emt 0:00:00]} bxc6 {[%emt 0:00:07]} 35. bxc6 {[%emt 0:00:00]} h4 {[%emt 0:00:09]} 36. c7 {[%emt 0:00:00]} h3+ {[%emt 0:00:06]} 37. Kg1 {[%emt 0:00:00]} Qb1+ {[%emt 0:01:44]} 38. Bc1 {[%emt 0:00:00]} Bxd4 {[%emt 0:00:22]} 39. Qxd4 {[%emt 0:00:00]} Qxc1+ {[%emt 0:00:07]} 40. Kf2 {[%emt 0:00:00]} Rf8+ {[%emt 0:00:30]} 0-1